bitfinex-derivatives/quotes_BNBF0:USTF0_20230831
["timestamp","ask_amount","ask_price","bid_price","bid_amount"]
[1693501660423,0.07282345,217.66,217.3,0.19659843]
[1693501660627,0.07282345,217.66,217.31,0.19659843]
[1693501660824,0.07282345,217.66,217.32,0.19659843]
[1693501661026,0.07282345,217.66,217.3,0.19659843]
[1693501661228,0.07282345,217.66,217.31,0.19659843]
[1693501667031,0.07282345,217.66,217.3,0.19659843]
[1693501667229,0.07282345,217.66,217.32,0.19659843]
[1693501667429,0.07282345,217.66,217.33,0.19659843]
[1693501667634,0.07282345,217.66,217.3,0.19659843]
[1693501667834,0.07282345,217.66,217.31,0.19659843]
[1693501668033,0.07282345,217.66,217.3,0.27172771]
[1693501668227,0.07282345,217.66,217.31,0.19659843]
[1693501668636,0.07282345,217.66,217.3,0.19659843]
[1693501669032,0.07282345,217.66,217.3,0.27172771]
[1693501669237,0.07282345,217.67,217.31,0.19659843]
[1693501669940,0.07282345,217.66,217.31,0.19659843]
[1693501670139,0.07282345,217.66,217.3,0.19659843]
[1693501670337,0.07282345,217.66,217.31,0.19659843]
[1693501670540,0.07282345,217.66,217.3,0.19659843]
[1693501670739,0.07282345,217.66,217.31,0.19659843]
[1693501670939,0.07282345,217.66,217.3,0.19659843]
[1693501671240,0.07282345,217.66,217.31,0.19659843]
[1693501671440,0.07282345,217.66,217.3,0.19659843]
[1693501671741,0.07282345,217.66,217.31,0.19659843]
[1693501671941,0.07282345,217.66,217.3,0.19659843]
[1693501672143,0.07282345,217.66,217.31,0.19659843]
[1693501672342,0.07282345,217.66,217.3,0.19659843]
[1693501673243,0.07282345,217.66,217.29,0.19659843]
[1693501673545,0.07282345,217.66,217.3,0.19659843]
[1693501673746,0.07282345,217.65,217.29,0.19659843]
[1693501673942,0.07282345,217.64,217.3,0.19659843]
[1693501674141,0.07282345,217.64,217.28,0.19659843]
[1693501674338,0.07282345,217.64,217.29,0.19659843]
[1693501674538,0.07282345,217.64,217.3,0.19659843]
[1693501674739,0.07282345,217.64,217.31,0.19659843]
[1693501674937,0.07282345,217.63,217.27,0.19659843]
[1693501675142,0.07282345,217.63,217.28,0.19659843]
[1693501675345,0.07282345,217.63,217.26,0.19659843]
[1693501675645,0.07282345,217.63,217.27,0.19659843]
[1693501675839,0.07282345,217.63,217.26,0.19659843]
[1693501676038,0.07282345,217.63,217.27,0.19659843]
[1693501676242,0.07282345,217.63,217.28,0.19659843]
[1693501676437,0.07282345,217.63,217.25,0.07512928]
[1693501676438,0.07282345,217.63,217.26,0.27172771]
[1693501676640,0.07282345,217.63,217.27,0.19659843]
[1693501677245,0.07282345,217.62,217.26,0.27172771]
[1693501677444,0.07282345,217.62,217.27,0.19659843]
[1693501679058,0.07282345,217.62,217.28,0.07512928]
[1693501679250,0.07282345,217.61,217.29,0.19659843]
[1693501679450,0.07282345,217.6,217.29,0.19659843]
[1693501679646,0.07282345,217.6,217.27,0.07512928]
[1693501679647,0.07282345,217.61,217.28,0.19659843]
[1693501679851,0.07282345,217.61,217.29,0.19659843]
[1693501680149,0.07282345,217.59,217.3,0.19659843]
[1693501680752,0.07282345,217.55,217.29,0.07512928]
[1693501681049,0.07282345,217.55,216.77,3.50603311]
[1693501681050,0.07282345,217.54,217.24,0.07512928]
[1693501681250,0.07282345,217.54,217.25,0.196521]
[1693501681448,0.07282345,217.54,217.26,0.196521]
[1693501681648,0.07282345,217.54,217.25,0.196521]
[1693501682543,0.97097938,217.62,217.25,0.196521]
[1693501682544,0.07282345,217.55,217.25,0.196521]
[1693501682752,0.07282345,217.56,217.26,0.196521]
[1693501682944,0.07282345,217.56,217.27,0.196521]
[1693501683251,0.07282345,217.56,217.28,0.196521]
[1693501683451,0.07282345,217.56,217.23,0.196521]
[1693501683643,0.07282345,217.56,217.24,0.19649976]
[1693501683843,0.07282345,217.56,217.25,0.19649976]
[1693501684047,0.07282345,217.57,217.23,0.19649976]
[1693501684249,0.07282345,217.57,217.24,0.19649976]
[1693501684448,0.07282345,217.57,217.22,0.19649976]
[1693501684644,0.07282345,217.57,217.23,0.19649976]
[1693501684848,0.07282345,217.57,217.24,0.19649976]
[1693501685053,0.07282345,217.57,217.22,0.19649976]
[1693501685346,0.07282345,217.58,217.23,0.19649976]
[1693501685551,0.07282345,217.58,217.21,0.19649976]
[1693501686451,2.42744846,217.71,217.21,0.19649976]
[1693501686452,0.07282345,217.59,217.21,0.19649976]
[1693501687453,0.07282345,217.6,217.2,0.27162904]
[1693501687653,0.07282345,217.6,217.21,0.19649976]
[1693501687855,0.07282345,217.64,217.24,0.07512928]
[1693501688049,0.07282345,217.65,217.25,0.27162904]
[1693501688253,0.07282345,217.66,217.26,0.19649976]
[1693501689052,0.07282345,217.65,217.26,0.27162904]
[1693501689252,0.07282345,217.65,217.27,0.19649976]
[1693501689454,0.07282345,217.66,217.27,0.19649976]
[1693501689650,0.07282345,217.66,217.26,0.19649976]
[1693501689855,0.07282345,217.65,217.26,0.19649976]
[1693501691059,0.07282345,217.66,217.26,0.19649976]
[1693501691258,0.07282345,217.66,217.26,0.27162904]
[1693501691456,0.07282345,217.66,217.27,0.19649976]
[1693501692054,0.48548969,217.71,217.33,0.07512928]
[1693501692359,0.07282345,217.76,217.35,0.07512928]
[1693501692559,0.07282345,217.76,217.36,0.27162904]
[1693501692759,0.07282345,217.76,217.37,0.19649976]
[1693501693359,0.07282345,217.77,217.37,0.19649976]
[1693501693659,0.07282345,217.77,217.38,0.19649976]
[1693501693853,0.07282345,217.77,217.34,0.19649976]
[1693501694253,0.07282345,217.78,217.35,0.19649976]
[1693501694459,0.07282345,217.79,217.36,0.19649976]
[1693501694660,0.07282345,217.79,217.37,0.19649976]
[1693501694855,0.07282345,217.79,217.33,0.07512928]
[1693501694856,0.07282345,217.79,217.38,0.19649976]
[1693501695060,0.07282345,217.8,217.39,0.19649976]
[1693501695261,0.07282345,217.8,217.4,0.19649976]
[1693501695563,0.07282345,217.8,217.41,0.19649976]
[1693501695763,0.07282345,217.8,217.32,0.19649976]
[1693501696362,0.84439226,217.79,217.32,0.19649976]
[1693501696563,0.07282345,217.81,217.33,0.19649976]
[1693501696761,0.84435798,217.8,217.34,0.19649976]
[1693501697063,0.84435798,217.8,217.35,0.19649976]
[1693501697258,0.84435798,217.8,217.31,0.19649976]
[1693501697457,0.84435798,217.8,217.32,0.19649976]
[1693501697660,0.84435798,217.8,217.31,0.27162904]
[1693501697856,0.84435798,217.8,217.32,0.19649976]
[1693501698056,0.07282345,217.82,217.32,0.19649976]
[1693501698057,0.84435798,217.81,217.32,0.19649976]
[1693501698261,0.1456469,217.85,217.31,0.19649976]
[1693501698262,0.84433821,217.8,217.31,0.19649976]
[1693501698464,0.07282345,217.83,217.32,0.19649976]
[1693501698657,0.84433715,217.82,217.31,0.19649976]
[1693501698864,0.84433715,217.82,217.32,0.19649976]
[1693501699065,0.84433715,217.82,217.31,0.19649976]
[1693501699261,0.84433715,217.82,217.32,0.19649976]
[1693501699459,0.84433715,217.82,217.3,0.19649976]
[1693501699665,0.84433715,217.83,217.31,0.19649976]
[1693501699965,0.84433715,217.82,217.32,0.19649976]
[1693501700167,0.84433715,217.83,217.3,0.19649976]
[1693501700466,0.84433715,217.82,217.31,0.19649976]
[1693501700665,0.84433715,217.81,217.32,0.19649976]
[1693501700964,0.84433715,217.8,217.33,0.19649976]
[1693501701165,0.07282345,217.85,217.3,0.19649976]
[1693501701367,0.84431812,217.84,217.31,0.19649976]
[1693501701565,0.84431812,217.84,217.29,0.19649976]
[1693501701771,0.84431812,217.84,217.3,0.19649976]
[1693501701963,0.84431812,217.84,217.31,0.19649976]
[1693501702162,0.84431812,217.84,217.29,0.19649976]
[1693501702367,0.84431812,217.83,217.3,0.19649976]
[1693501702563,0.84431812,217.85,217.28,0.19649976]
[1693501702768,0.84431812,217.84,217.29,0.19649976]
[1693501703067,0.84431812,217.83,217.29,0.19649976]
[1693501703371,0.84431812,217.82,217.3,0.19649976]
[1693501703570,0.84431812,217.85,217.28,0.19649976]
[1693501703868,0.84431812,217.84,217.29,0.19649976]
[1693501704064,0.84431812,217.86,217.28,0.19649976]
[1693501704269,0.84431812,217.85,217.29,0.19649976]
[1693501704567,0.84431812,217.84,217.3,0.19649976]
[1693501704765,0.84431812,217.83,217.28,0.19649976]
[1693501704971,0.84431812,217.82,217.28,0.19649976]
[1693501705270,0.84431812,217.81,217.28,0.19649976]
[1693501705471,0.84431812,217.86,217.27,0.19649976]
[1693501705671,0.8443326,217.85,217.28,0.19649976]
[1693501705867,0.8443326,217.84,217.29,0.19649976]
[1693501706070,0.8443326,217.83,217.3,0.19649976]
[1693501706370,0.8443326,217.82,217.31,0.19649976]
[1693501706571,0.07282345,217.88,217.25,0.07512928]
[1693501706572,0.8443326,217.87,217.26,0.19649976]
[1693501706767,0.8443326,217.86,217.27,0.19649976]
[1693501706968,0.8443326,217.86,217.28,0.19649976]
[1693501707168,0.8443326,217.86,217.29,0.19649976]
[1693501707365,0.8443326,217.86,217.3,0.19649976]
[1693501707570,0.8443326,217.86,217.31,0.19649976]
[1693501707766,0.8443326,217.86,217.26,0.19649976]
[1693501707971,0.8443326,217.86,217.27,0.19649976]
[1693501708166,0.8443326,217.86,217.25,0.07512928]
[1693501708167,0.8443326,217.86,217.26,0.19649976]
[1693501708373,0.8443326,217.87,217.27,0.19649976]
[1693501708575,0.8443326,217.86,217.26,0.19649976]
[1693501708770,0.8443326,217.87,217.27,0.19649976]
[1693501708967,0.8443326,217.86,217.26,0.19649976]
[1693501709171,0.8443326,217.87,217.27,0.19649976]
[1693501709366,0.8443326,217.86,217.28,0.19649976]
[1693501709571,0.8443326,217.85,217.29,0.19649976]
[1693501709773,0.8443326,217.84,217.3,0.19649976]
[1693501710073,0.8443326,217.83,217.31,0.19649976]
[1693501710275,0.8443326,217.82,217.32,0.19649976]
[1693501710473,0.8443326,217.87,217.25,0.27162904]
[1693501710674,0.8443326,217.86,217.33,0.19649976]
[1693501710874,0.8443326,217.85,217.34,0.19649976]
[1693501711075,0.8443326,217.87,217.25,0.19649976]
[1693501711275,0.8443326,217.86,217.26,0.19649976]
[1693501711471,0.8443326,217.87,217.25,0.19649976]
[1693501711677,0.8443326,217.86,217.26,0.19649976]
[1693501711872,0.07282345,217.88,217.24,0.07512928]
[1693501711873,0.8443326,217.87,217.25,0.19649976]
[1693501712071,0.8443326,217.86,217.26,0.19649976]
[1693501712273,0.8443326,217.85,217.27,0.19649976]
[1693501712570,0.8443326,217.84,217.28,0.19649976]
[1693501712774,0.8443326,217.88,217.25,0.19649976]
[1693501712972,0.8443326,217.87,217.26,0.19649976]
[1693501713173,0.8443326,217.88,217.25,0.27162904]
[1693501713475,0.8443326,217.87,217.26,0.19649976]
[1693501713675,0.8443326,217.86,217.26,0.19649976]
[1693501713878,0.8443326,217.88,217.26,0.19649976]
[1693501714072,0.8443326,217.87,217.26,0.19649976]
[1693501714278,0.8443326,217.88,217.26,0.19649976]
[1693501714477,0.8443326,217.87,217.26,0.19649976]
[1693501714676,0.8443326,217.88,217.26,0.19649976]
[1693501714978,0.91715605,217.88,217.26,0.19649976]
[1693501715179,0.8443326,217.87,217.26,0.19649976]
[1693501715579,0.8443326,217.87,217.25,0.19649976]
[1693501715779,0.8443326,217.87,217.26,0.19649976]
[1693501715978,0.8443326,217.87,217.25,0.19649976]
[1693501717076,0.8443326,217.87,217.25,0.27162904]
[1693501717285,0.8443326,217.87,217.26,0.19649976]
[1693501717781,0.07282345,217.86,217.25,0.27162904]
[1693501717981,0.8443326,217.85,217.26,0.19649976]
[1693501718875,0.91715605,217.85,217.26,0.19649976]
[1693501719075,0.91715605,217.84,217.26,0.27162904]
[1693501719281,0.8443326,217.83,217.27,0.19649976]
[1693501720178,0.07282345,217.82,217.28,0.07512928]
[1693501720381,0.8443326,217.81,217.29,0.19649976]
[1693501721088,0.8443326,217.81,217.3,0.07512928]
[1693501721089,0.07282345,217.8,217.3,0.07512928]
[1693501721385,0.91715605,217.79,217.31,0.19649976]
[1693501721588,0.07282345,217.79,217.31,0.19649976]
[1693501722288,0.07282345,217.76,217.33,0.07512928]
[1693501722489,0.07282345,217.76,217.34,0.19649976]
[1693501722681,0.07282345,217.75,217.34,0.19649976]
[1693501722885,0.07282345,217.75,217.32,0.19649976]
[1693501723083,0.07282345,217.75,217.33,0.19649976]
[1693501723280,0.07282345,217.74,217.32,0.19649976]
[1693501723485,0.07282345,217.74,217.33,0.19649976]
[1693501723687,0.07282345,217.75,217.32,0.19649976]
[1693501723884,0.07282345,217.76,217.33,0.27162904]
[1693501724086,0.07282345,217.76,217.27,0.15025856]
[1693501724087,0.07282345,217.75,217.35,0.07512928]
[1693501724287,0.07282345,217.74,217.36,0.19649976]
[1693501724786,2.42744846,217.88,217.36,0.19649976]
[1693501724787,0.07282345,217.75,217.36,0.27162904]
[1693501724987,0.07282345,217.76,217.37,0.19649976]
[1693501725185,0.07282345,217.73,217.38,0.07512928]
[1693501725382,0.07282345,217.73,217.39,0.19649976]
[1693501727190,0.07282345,217.69,217.42,0.07512928]
[1693501727391,0.07282345,217.69,217.43,0.19649976]
[1693501728291,0.07282345,217.73,217.46,0.07512928]
[1693501728493,0.07282345,217.74,217.48,0.07512928]
[1693501728792,0.1456469,217.74,217.49,0.19649976]
[1693501728993,0.07282345,217.71,217.44,0.07512928]
[1693501729192,0.07282345,217.71,217.45,0.1958097]
[1693501734299,0.07282345,217.71,217.44,0.1958097]
[1693501735299,0.07282345,217.7,217.44,0.1958097]
[1693501738699,0.07282345,217.69,217.43,0.1958097]
[1693501738894,0.07282345,217.7,217.44,0.1958097]
[1693501739100,0.07282345,217.7,217.43,0.1958097]
[1693501739300,0.07282345,217.69,217.44,0.1958097]
[1693501739496,0.07282345,217.69,217.43,0.1958097]
[1693501739709,0.07282345,217.69,217.44,0.1958097]
[1693501739900,0.07282345,217.7,217.43,0.1958097]
[1693501740401,0.07282345,217.7,217.43,0.27093898]
[1693501740697,0.07282345,217.7,217.44,0.1958097]
[1693501741500,0.07282345,217.7,217.43,0.27093898]
[1693501741696,0.07282345,217.7,217.44,0.1958097]
[1693501742603,0.07282345,217.71,217.44,0.1958097]
[1693501743903,0.07282345,217.72,217.44,0.27093898]
[1693501744098,0.07282345,217.72,217.45,0.1958097]
[1693501745302,0.97097938,217.8,217.45,0.1958097]
[1693501745303,0.07282345,217.73,217.45,0.27093898]
[1693501745504,0.07282345,217.72,217.46,0.1958097]
[1693501745704,0.07282345,217.73,217.46,0.1958097]
[1693501745905,0.07282345,217.72,217.46,0.1958097]
[1693501746102,0.07282345,217.73,217.45,0.27093898]
[1693501746403,0.07282345,217.73,217.46,0.1958097]
[1693501747502,0.07282345,217.72,217.46,0.1958097]
[1693501747701,0.07282345,217.72,217.45,0.1958097]
[1693501748606,0.07282345,217.71,217.46,0.1958097]
[1693501748799,0.07282345,217.71,217.44,0.1958097]
[1693501749003,0.07282345,217.72,217.44,0.1958097]
[1693501749399,0.07282345,217.72,217.44,0.27093898]
[1693501749602,0.07282345,217.72,217.45,0.1958097]
[1693501751305,0.07282345,217.73,217.45,0.1958097]
[1693501751505,0.07282345,217.72,217.45,0.1958097]
[1693501752601,0.07282345,217.72,217.44,0.1958097]
[1693501752804,0.07282345,217.72,217.45,0.1958097]
[1693501753107,0.07282345,217.72,217.46,0.1958097]
[1693501753300,0.07282345,217.72,217.44,0.1958097]
[1693501754305,0.07316423,217.72,217.44,0.1958097]
[1693501754513,0.07316423,217.72,217.43,0.07526273]
[1693501754807,0.07316423,217.72,217.44,0.1958097]
[1693501755410,0.07316423,217.71,217.44,0.1958097]
[1693501756007,0.07316423,217.72,217.44,0.27107243]
[1693501756209,0.07316423,217.72,217.45,0.1958097]
[1693501757707,0.07316423,217.71,217.45,0.1958097]
[1693501757908,0.07316423,217.71,217.44,0.1958097]
[1693501758112,0.07316423,217.7,217.45,0.1958097]
[1693501758305,0.07316423,217.7,217.37,0.15052547]
[1693501758306,0.07316423,217.7,217.44,0.27107243]
[1693501758512,0.07316423,217.7,217.45,0.1958097]
[1693501758710,0.07316423,217.71,217.45,0.1958097]
[1693501759014,0.07316423,217.71,217.45,0.27107243]
[1693501759211,0.07316423,217.71,217.46,0.1958097]
[1693501760209,0.07316423,217.72,217.46,0.27107243]
[1693501760406,0.07316423,217.72,217.47,0.1958097]
[1693501762616,0.07316423,217.73,217.47,0.27107243]
[1693501762917,0.07316423,217.73,217.48,0.1958097]
[1693501763515,0.07316423,217.79,217.52,0.07526273]
[1693501763716,0.07316423,217.79,217.53,0.27107243]
[1693501763915,0.07316423,217.79,217.54,0.1958097]
[1693501765317,0.07316423,217.81,217.54,0.1958097]
[1693501765816,0.07316423,217.81,217.51,0.1958097]
[1693501766519,0.07316423,217.83,217.51,0.1958097]
[1693501766719,0.07316423,217.84,217.51,0.27107243]
[1693501766920,0.07316423,217.84,217.52,0.1958097]
[1693501767220,0.07316423,217.85,217.52,0.27107243]
[1693501767421,0.07316423,217.85,217.53,0.1958097]
[1693501768022,0.07316423,217.85,217.52,0.1958097]
[1693501768320,0.07316423,217.86,217.53,0.1958097]
[1693501768521,0.07316423,217.86,217.5,0.27107243]
[1693501768721,0.07316423,217.86,217.51,0.1958097]
[1693501769015,0.07316423,217.86,217.52,0.1958097]
[1693501769321,0.07316423,217.86,217.53,0.1958097]
[1693501769616,0.07316423,217.86,217.54,0.1958097]
[1693501769819,0.07316423,217.86,217.48,0.1958097]
[1693501770019,0.07316423,217.86,217.49,0.1958097]
[1693501770218,0.07316423,217.86,217.48,0.1958097]
[1693501770421,0.07316423,217.86,217.49,0.1958097]
[1693501770720,0.07316423,217.86,217.5,0.1958097]
[1693501770916,0.07316423,217.86,217.48,0.1958097]
[1693501771220,0.07316423,217.86,217.49,0.1958097]
[1693501771422,0.07316423,217.87,217.48,0.1958097]
[1693501771617,0.07316423,217.87,217.49,0.1958097]
[1693501771817,0.07316423,217.87,217.48,0.1958097]
[1693501772018,0.07316423,217.87,217.49,0.1958097]
[1693501772219,0.07316423,217.87,217.48,0.1958097]
[1693501772523,0.07316423,217.88,217.49,0.1958097]
[1693501772718,0.07316423,217.88,217.47,0.1958097]
[1693501772919,0.07316423,217.88,217.48,0.1958097]
[1693501773114,0.07316423,217.88,217.47,0.1958097]
[1693501773321,0.07316423,217.88,217.48,0.1958097]
[1693501773521,0.07316423,217.88,217.47,0.1958097]
[1693501773721,0.07316423,217.88,217.48,0.1958097]
[1693501773922,0.07316423,217.88,217.47,0.1958097]
[1693501774123,0.07316423,217.88,217.48,0.1958097]
[1693501774322,0.07316423,217.89,217.47,0.1958097]
[1693501774524,0.07316423,217.89,217.46,0.07526273]
[1693501774525,0.07316423,217.89,217.48,0.1958097]
[1693501774725,0.07316423,217.93,217.5,0.07526273]
[1693501774922,0.07316423,217.94,217.51,0.27107243]
[1693501775122,0.07316423,217.94,217.52,0.1958097]
[1693501775322,0.07316423,217.96,217.52,0.1958097]
[1693501775823,0.07316423,217.96,217.5,0.1958097]
[1693501776025,0.07316423,217.96,217.51,0.1958097]
[1693501776224,0.07316423,217.96,217.5,0.1958097]
[1693501776419,0.07316423,217.96,217.51,0.1958097]
[1693501776623,0.07316423,217.96,217.52,0.1958097]
[1693501776822,0.07316423,217.96,217.53,0.1958097]
[1693501777025,0.07316423,217.96,217.54,0.1958097]
[1693501777220,0.07316423,217.96,217.55,0.1958097]
[1693501777427,0.07316423,217.97,217.5,0.1958097]
[1693501777629,0.84371892,217.96,217.51,0.1958097]
[1693501777825,0.84371892,217.96,217.52,0.1958097]
[1693501778025,0.84371892,217.96,217.53,0.1958097]
[1693501778226,0.91688315,217.96,217.54,0.1958097]
[1693501778421,0.07316423,217.97,217.55,0.1958097]
[1693501778622,0.07316423,217.97,217.46,0.07526273]
[1693501778623,0.84372785,217.96,217.56,0.1958097]
[1693501778925,0.84372785,217.96,217.57,0.1958097]
[1693501779123,0.84372785,217.96,217.47,0.1958097]
[1693501779326,0.84372785,217.96,217.48,0.1958097]
[1693501779522,0.07316423,217.98,217.47,0.1958097]
[1693501779727,0.84373386,217.97,217.48,0.1958097]
[1693501779922,0.84373386,217.97,217.47,0.1958097]
[1693501780128,0.84373386,217.97,217.48,0.1958097]
[1693501780330,0.84373386,217.97,217.47,0.1958097]
[1693501780632,0.84373386,217.97,217.48,0.1958097]
[1693501780929,0.84373386,217.97,217.49,0.1958097]
[1693501781125,0.84373386,217.97,217.5,0.1958097]
[1693501781331,0.84373386,217.97,217.46,0.1958097]
[1693501781530,0.84373386,217.97,217.47,0.1958097]
[1693501781732,0.84373386,217.97,217.45,0.1958097]
[1693501781930,0.84373386,217.97,217.46,0.1958097]
[1693501782130,0.84373386,217.97,217.45,0.1958097]
[1693501782333,0.84373386,217.97,217.44,0.07526273]
[1693501782334,0.84373386,217.97,217.46,0.1958097]
[1693501782526,0.84373386,217.97,217.45,0.1958097]
[1693501782736,0.84373386,217.97,217.46,0.1958097]
[1693501782935,0.84373386,217.97,217.44,0.1958097]
[1693501783136,0.84373386,217.97,217.45,0.1958097]
[1693501783329,0.84373386,217.98,217.44,0.270503]
[1693501783534,0.07266848,217.99,217.44,0.270503]
[1693501783535,0.84373386,217.97,217.45,0.1958097]
[1693501783728,0.84373386,217.98,217.45,0.1958097]
[1693501783934,0.84373386,217.97,217.45,0.1958097]
[1693501784235,0.84373386,217.96,217.45,0.1958097]
[1693501784537,0.84373386,217.95,217.45,0.1958097]
[1693501784737,0.84373386,217.98,217.44,0.270503]
[1693501785035,0.84372601,217.97,217.45,0.1958097]
[1693501785235,0.84372601,217.98,217.45,0.1958097]
[1693501785429,0.84372601,217.97,217.44,0.1958097]
[1693501785632,0.84372601,217.98,217.45,0.1958097]
[1693501785834,0.84372601,217.97,217.44,0.1958097]
[1693501786033,0.84372601,217.98,217.45,0.1958097]
[1693501786229,0.84372601,217.97,217.44,0.1958097]
[1693501786433,0.84372601,217.98,217.45,0.1958097]
[1693501786632,0.07266848,217.99,217.44,0.1958097]
[1693501786633,0.84372601,217.97,217.44,0.1958097]
[1693501786830,0.84372601,217.98,217.45,0.1958097]
[1693501787035,0.84372601,217.97,217.44,0.1958097]
[1693501787330,0.84372601,217.96,217.45,0.1958097]
[1693501787532,0.84372601,217.98,217.44,0.1958097]
[1693501787732,0.48445654,218.04,217.44,0.1958097]
[1693501787733,0.84372601,217.97,217.45,0.1958097]
[1693501787931,0.07266848,217.96,217.45,0.1958097]
[1693501788234,0.07266848,217.94,217.46,0.1958097]
[1693501788439,0.84372601,217.93,217.41,0.1958097]
[1693501788639,0.84372601,217.93,217.42,0.1958097]
[1693501788934,0.84372601,217.93,217.43,0.1958097]
[1693501789135,0.84372601,217.93,217.41,0.1958097]
[1693501789335,0.84372601,217.93,217.42,0.1958097]
[1693501790331,0.91639449,217.93,217.42,0.270503]
[1693501790537,0.84372601,217.92,217.43,0.1958097]
[1693501790838,0.84372601,217.92,217.44,0.1958097]
[1693501791039,0.84372601,217.92,217.43,0.1958097]
[1693501791238,0.84372601,217.92,217.44,0.1958097]
[1693501791541,0.91639449,217.92,217.45,0.1958097]
[1693501791839,0.07266848,217.92,217.46,0.1958097]
[1693501792035,0.84389002,217.91,217.44,0.1958097]
[1693501792335,0.84389002,217.91,217.45,0.1958097]
[1693501792640,0.9165585,217.91,217.46,0.1958097]
[1693501792939,0.07266848,217.91,217.47,0.1958097]
[1693501793238,0.07266848,217.91,217.48,0.1958097]
[1693501793439,0.07266848,217.9,217.45,0.1958097]
[1693501793835,0.07266848,217.9,217.44,0.1958097]
[1693501794040,0.07266848,217.9,217.45,0.1958097]
[1693501794241,0.07266848,217.9,217.44,0.1958097]
[1693501794436,0.07266848,217.89,217.45,0.0746933]
[1693501794643,0.07266848,217.9,217.46,0.270503]
[1693501794841,0.07266848,217.91,217.47,0.1958097]
[1693501795442,0.07266848,217.95,217.51,0.0746933]
[1693501795643,0.07266848,217.94,217.53,0.0746933]
[1693501795839,0.07266848,217.94,217.54,0.1958097]
[1693501796343,0.07266848,217.95,217.54,0.1958097]
[1693501797041,0.07266848,217.96,217.54,0.1958097]
[1693501797643,0.07266848,217.94,217.54,0.270503]
[1693501797846,0.07266848,217.94,217.55,0.1958097]
[1693501798240,0.07266848,217.93,217.55,0.1958097]
[1693501798447,0.07266848,217.93,217.55,0.270503]
[1693501798642,0.07266848,217.93,217.56,0.1958097]
[1693501799448,0.07266848,217.94,217.56,0.1958097]
[1693501800243,0.07266848,217.93,217.56,0.1958097]
[1693501800743,0.07266848,217.94,217.56,0.1958097]
[1693501801343,0.07266848,217.93,217.56,0.270503]
[1693501801545,0.07266848,217.93,217.57,0.1958097]
[1693501802249,2.4222827,218.06,217.57,0.1958097]
[1693501802250,0.07266848,217.94,217.57,0.1958097]
[1693501802843,0.07266848,217.94,217.58,0.1958097]
[1693501803047,0.07266848,217.94,217.57,0.1958097]
[1693501803243,0.07266848,217.94,217.58,0.1958097]
[1693501803444,0.07266848,217.94,217.56,0.270503]
[1693501803645,0.07266848,217.94,217.57,0.1958097]
[1693501803849,0.07266848,217.94,217.56,0.1958097]
[1693501804045,0.07266848,217.94,217.57,0.1958097]
[1693501804245,0.07266848,217.94,217.56,0.1958097]
[1693501804451,0.07266848,217.94,217.57,0.1958097]
[1693501804651,0.07266848,217.94,217.56,0.1958097]
[1693501804852,0.07266848,217.93,217.56,0.1958097]
[1693501805054,0.07266848,217.92,217.57,0.1958097]
[1693501805251,0.07266848,217.92,217.58,0.1958097]
[1693501805454,0.07266848,217.92,217.54,0.1958097]
[1693501805650,0.07266848,217.92,217.53,0.0746933]
[1693501805651,0.07266848,217.92,217.55,0.1958097]
[1693501805851,0.07266848,217.92,217.54,0.1958097]
[1693501806051,0.07266848,217.92,217.56,0.1958097]
[1693501806253,0.07266848,217.92,217.57,0.1958097]
[1693501806457,0.07266848,217.91,217.54,0.1958097]
[1693501806655,0.07266848,217.87,217.55,0.1958097]
[1693501806955,0.07266848,217.87,217.56,0.1958097]
[1693501807147,0.07266848,217.87,217.57,0.1958097]
[1693501807353,0.07266848,217.87,217.49,0.0746933]
[1693501807354,0.07266848,217.87,217.5,0.1958097]
[1693501807554,0.07266848,217.87,217.51,0.1958097]
[1693501807750,0.07266848,217.87,217.5,0.1958097]
[1693501807955,0.07266848,217.86,217.51,0.1958097]
[1693501808150,0.07266848,217.86,217.5,0.1958097]
[1693501809854,0.07266848,217.86,217.51,0.1958097]
[1693501810154,0.07266848,217.86,217.52,0.1958097]
[1693501810356,0.07266848,217.86,217.5,0.1958097]
[1693501810554,0.07266848,217.86,217.51,0.1958097]
[1693501810755,0.07266848,217.86,217.5,0.1958097]
[1693501811852,0.07266848,217.86,217.49,0.1958097]
[1693501812050,0.07266848,217.86,217.5,0.1958097]
[1693501812251,0.07266848,217.86,217.51,0.1958097]
[1693501812457,0.07266848,217.86,217.52,0.1958097]
[1693501812651,0.07266848,217.86,217.53,0.1958097]
[1693501812955,0.07266848,217.86,217.54,0.1958097]
[1693501813255,0.07266848,217.86,217.55,0.1958097]
[1693501813455,0.07266848,217.86,217.48,0.1958097]
[1693501814456,0.07266848,217.86,217.48,0.270503]
[1693501814657,0.07266848,217.86,217.49,0.1958097]
[1693501815558,0.07266848,217.86,217.48,0.270503]
[1693501815757,0.07266848,217.86,217.49,0.1958097]
[1693501816459,0.07266848,217.87,217.49,0.1958097]
[1693501816657,0.07266848,217.87,217.41,0.14938661]
[1693501816658,0.07266848,217.87,217.5,0.1958097]
[1693501816853,0.07266848,217.87,217.49,0.1958097]
[1693501817054,0.07266848,217.87,217.5,0.1958097]
[1693501817256,0.07266848,217.87,217.49,0.1958097]
[1693501817458,0.07266848,217.87,217.5,0.1958097]
[1693501817759,0.07266848,217.87,217.51,0.1958097]
[1693501817952,0.07266848,217.87,217.49,0.1958097]